[Event "Early-Titled-Tuesday-Blitz-December-26-2023"]
[Site "Chess.com"]
[Date "2023.12.26"]
[Round "11"]
[White "wonderfultime"]
[Black "Eternauta2400"]
[Result "1-0"]
[WhiteElo "3005"]
[BlackElo "2814"]
[TimeControl "180+1"]
[EndTime "10:05:56 PST"]
[Termination "wonderfultime won by resignation"]

1. d4 {[%clk 0:03:00.9]} 1... Nf6 {[%clk 0:02:54.6]} 2. Nf3 {[%clk 0:02:55.5]}
2... c5 {[%clk 0:02:54.5]} 3. c3 {[%clk 0:02:55.3]} 3... d5 {[%clk 0:02:50.7]}
4. Bf4 {[%clk 0:02:52.2]} 4... Qb6 {[%clk 0:02:50.3]} 5. Qc2 {[%clk 0:02:51.8]}
5... Nc6 {[%clk 0:02:48.9]} 6. e3 {[%clk 0:02:51.8]} 6... g6 {[%clk 0:02:46.6]}
7. Nbd2 {[%clk 0:02:51.6]} 7... Bf5 {[%clk 0:02:46.6]} 8. dxc5 {[%clk
0:02:51.3]} 8... Qxc5 {[%clk 0:02:38.1]} 9. Qb3 {[%clk 0:02:51.2]} 9... Bc8
{[%clk 0:02:36.7]} 10. Be2 {[%clk 0:02:46]} 10... Bg7 {[%clk 0:02:36.9]} 11. O-O
{[%clk 0:02:46.2]} 11... O-O {[%clk 0:02:37.6]} 12. h3 {[%clk 0:02:45.2]} 12...
b6 {[%clk 0:02:36]} 13. Qa4 {[%clk 0:02:43.2]} 13... Bd7 {[%clk 0:02:24.7]} 14.
Nb3 {[%clk 0:02:41.1]} 14... b5 {[%clk 0:02:12.5]} 15. Nxc5 {[%clk 0:02:38.5]}
15... bxa4 {[%clk 0:02:11.9]} 16. Nxd7 {[%clk 0:02:08.2]} 16... Nxd7 {[%clk
0:02:12.8]} 17. Bb5 {[%clk 0:02:08.9]} 17... Rfc8 {[%clk 0:02:12]} 18. Bxa4
{[%clk 0:02:08.3]} 18... Nc5 {[%clk 0:02:11.5]} 19. Bb5 {[%clk 0:01:56.9]} 19...
e6 {[%clk 0:02:00.4]} 20. Rfd1 {[%clk 0:01:55]} 20... a6 {[%clk 0:01:58.9]} 21.
Be2 {[%clk 0:01:54.9]} 21... Na4 {[%clk 0:01:52.9]} 22. Rd2 {[%clk 0:01:53.8]}
22... Ne7 {[%clk 0:01:32.3]} 23. Rc1 {[%clk 0:01:41.4]} 23... h6 {[%clk
0:01:16]} 24. Be5 {[%clk 0:01:38.8]} 24... Bxe5 {[%clk 0:01:13.2]} 25. Nxe5
{[%clk 0:01:39.7]} 25... Rc7 {[%clk 0:01:09.1]} 26. c4 {[%clk 0:01:37.1]} 26...
Rac8 {[%clk 0:00:58.2]} 27. b3 {[%clk 0:01:35.8]} 27... Nb6 {[%clk 0:00:54.9]}
28. Rdc2 {[%clk 0:01:34.1]} 28... dxc4 {[%clk 0:00:50.9]} 29. Bxc4 {[%clk
0:01:27.9]} 29... a5 {[%clk 0:00:43.3]} 30. Bd3 {[%clk 0:01:24.3]} 30... Rxc2
{[%clk 0:00:42.4]} 31. Rxc2 {[%clk 0:01:25.2]} 31... Rxc2 {[%clk 0:00:42.9]} 32.
Bxc2 {[%clk 0:01:26.1]} 32... Ned5 {[%clk 0:00:43.7]} 33. a3 {[%clk 0:01:21.4]}
33... Nc3 {[%clk 0:00:34.1]} 34. Kf1 {[%clk 0:01:14.6]} 34... Nb5 {[%clk
0:00:27.7]} 35. a4 {[%clk 0:01:12.3]} 35... Na7 {[%clk 0:00:25]} 36. Ke2 {[%clk
0:01:09.7]} 36... Kg7 {[%clk 0:00:24.9]} 37. Kd2 {[%clk 0:01:06.4]} 37... Kf6
{[%clk 0:00:25.2]} 38. f4 {[%clk 0:01:06.9]} 38... Ke7 {[%clk 0:00:25.1]} 39.
Be4 {[%clk 0:01:06.9]} 39... Nd7 {[%clk 0:00:24.7]} 40. Nc4 {[%clk 0:01:06.2]}
40... Nc5 {[%clk 0:00:22.1]} 41. Bc2 {[%clk 0:01:05.6]} 41... Nc6 {[%clk
0:00:22.4]} 42. Kc3 {[%clk 0:01:04.6]} 42... f5 {[%clk 0:00:22.5]} 43. Nxa5
{[%clk 0:00:59.3]} 43... Nxa5 {[%clk 0:00:20.7]} 44. b4 {[%clk 0:01:00.1]} 44...
Nxa4+ {[%clk 0:00:20.3]} 45. Bxa4 {[%clk 0:00:59.9]} 45... Nb7 {[%clk
0:00:21.2]} 46. Kd4 {[%clk 0:00:59.4]} 46... Kd6 {[%clk 0:00:20.1]} 47. h4
{[%clk 0:00:57.8]} 47... g5 {[%clk 0:00:08.8]} 48. fxg5 {[%clk 0:00:56.4]} 48...
hxg5 {[%clk 0:00:09.7]} 49. h5 {[%clk 0:00:57]} 49... Nd8 {[%clk 0:00:09.4]} 50.
h6 {[%clk 0:00:57.2]} 50... Nf7 {[%clk 0:00:09.4]} 51. h7 {[%clk 0:00:57.9]}
51... Nh8 {[%clk 0:00:09.7]} 52. Be8 {[%clk 0:00:57.1]} 52... e5+ {[%clk
0:00:08.7]} 53. Kc4 {[%clk 0:00:57.3]} 53... g4 {[%clk 0:00:09]} 54. Bh5 {[%clk
0:00:54.7]} 54... Ke6 {[%clk 0:00:06.2]} 55. b5 {[%clk 0:00:54.8]} 55... Kd6
{[%clk 0:00:06.8]} 56. Kb4 {[%clk 0:00:47.6]} 56... g3 {[%clk 0:00:05.5]} 57.
Kc4 {[%clk 0:00:47.3]} 57... e4 {[%clk 0:00:02.1]} 58. Kd4 {[%clk 0:00:47]}
58... Ke6 {[%clk 0:00:02.3]} 59. b6 {[%clk 0:00:47]} 59... Kd6 {[%clk
0:00:03.2]} 60. Be8 {[%clk 0:00:45.8]} 60... Ke7 {[%clk 0:00:02]} 61. b7 {[%clk
0:00:45.9]} 1-0

[Event "Early-Titled-Tuesday-Blitz-December-26-2023"]
[Site "Chess.com"]
[Date "2023.12.26"]
[Round "11"]
[White "arturdailima"]
[Black "ural58"]
[Result "1/2-1/2"]
[WhiteElo "2336"]
[BlackElo "2485"]
[TimeControl "180+1"]
[EndTime "10:05:58 PST"]
[Termination "Game drawn by repetition"]

1. d4 {[%clk 0:03:00.9]} 1... d5 {[%clk 0:02:51.8]} 2. c4 {[%clk 0:03:01.1]}
2... e5 {[%clk 0:02:51.2]} 3. Nf3 {[%clk 0:03:01.7]} 3... e4 {[%clk 0:02:50.9]}
4. Nfd2 {[%clk 0:03:00.8]} 4... c6 {[%clk 0:02:51.5]} 5. e3 {[%clk 0:02:55.7]}
5... Nf6 {[%clk 0:02:51.4]} 6. Nc3 {[%clk 0:02:55.2]} 6... a6 {[%clk 0:02:50.9]}
7. f3 {[%clk 0:02:53.3]} 7... exf3 {[%clk 0:02:50.1]} 8. Nxf3 {[%clk 0:02:54.2]}
8... Bd6 {[%clk 0:02:49.2]} 9. cxd5 {[%clk 0:02:53.3]} 9... cxd5 {[%clk
0:02:48.6]} 10. Bd3 {[%clk 0:02:53.6]} 10... Bg4 {[%clk 0:02:47.5]} 11. O-O
{[%clk 0:02:53.2]} 11... Nbd7 {[%clk 0:02:47.3]} 12. Qb3 {[%clk 0:02:52]} 12...
Nb6 {[%clk 0:02:32.5]} 13. a4 {[%clk 0:02:49.1]} 13... O-O {[%clk 0:02:21.7]}
14. a5 {[%clk 0:02:46.8]} 14... Nc4 {[%clk 0:02:21.4]} 15. Bxc4 {[%clk 0:02:45]}
15... dxc4 {[%clk 0:02:20.8]} 16. Qxc4 {[%clk 0:02:45.9]} 16... Rc8 {[%clk
0:02:18.8]} 17. Qb3 {[%clk 0:02:42.4]} 17... Qc7 {[%clk 0:02:13.8]} 18. h3
{[%clk 0:02:37.8]} 18... Be6 {[%clk 0:02:12.5]} 19. d5 {[%clk 0:02:21.4]} 19...
Bf5 {[%clk 0:02:11.5]} 20. Nd4 {[%clk 0:02:20.2]} 20... Bd3 {[%clk 0:02:10.2]}
21. Rf2 {[%clk 0:01:45.6]} 21... Bc4 {[%clk 0:02:09.9]} 22. Qd1 {[%clk
0:01:41.3]} 22... Nxd5 {[%clk 0:01:41.9]} 23. Bd2 {[%clk 0:01:31.1]} 23... Be5
{[%clk 0:01:35]} 24. Qh5 {[%clk 0:01:24.7]} 24... g6 {[%clk 0:01:32]} 25. Qf3
{[%clk 0:01:24]} 25... Nxc3 {[%clk 0:01:27.8]} 26. Bxc3 {[%clk 0:01:18.3]} 26...
Bg7 {[%clk 0:01:17.5]} 27. Rd1 {[%clk 0:01:07.4]} 27... Qe7 {[%clk 0:01:12.8]}
28. Rfd2 {[%clk 0:01:01.9]} 28... Rfe8 {[%clk 0:01:08.3]} 29. Re1 {[%clk
0:01:02.1]} 29... Qe4 {[%clk 0:01:05.8]} 30. Kf2 {[%clk 0:00:55.5]} 30... Qxf3+
{[%clk 0:01:04.7]} 31. gxf3 {[%clk 0:00:56.4]} 31... f5 {[%clk 0:01:04]} 32. Ra1
{[%clk 0:00:39.9]} 32... Bf7 {[%clk 0:01:03]} 33. Ra4 {[%clk 0:00:37.4]} 33...
Red8 {[%clk 0:01:02.7]} 34. Rb4 {[%clk 0:00:37.2]} 34... Rd7 {[%clk 0:01:01.8]}
35. f4 {[%clk 0:00:32.9]} 35... Bf8 {[%clk 0:01:00.6]} 36. Rb6 {[%clk 0:00:32]}
36... Bc5 {[%clk 0:00:58.8]} 37. Rf6 {[%clk 0:00:30.6]} 37... Rcd8 {[%clk
0:00:53.6]} 38. Nf3 {[%clk 0:00:26.9]} 38... Rxd2+ {[%clk 0:00:52]} 39. Nxd2
{[%clk 0:00:26.8]} 39... Re8 {[%clk 0:00:17.7]} 40. Nf1 {[%clk 0:00:25]} 40...
Re6 {[%clk 0:00:17.3]} 41. Rxe6 {[%clk 0:00:19.9]} 41... Bxe6 {[%clk 0:00:18.2]}
42. Nd2 {[%clk 0:00:20.6]} 42... Bd5 {[%clk 0:00:17.9]} 43. Nf3 {[%clk
0:00:20.5]} 43... Bxf3 {[%clk 0:00:18]} 44. Kxf3 {[%clk 0:00:20.4]} 44... Kf7
{[%clk 0:00:18.3]} 45. e4 {[%clk 0:00:20.2]} 45... fxe4+ {[%clk 0:00:17.9]} 46.
Kxe4 {[%clk 0:00:19.9]} 46... Ke6 {[%clk 0:00:18.5]} 47. Bd2 {[%clk 0:00:17.8]}
47... Be7 {[%clk 0:00:18.5]} 48. Be1 {[%clk 0:00:16.4]} 48... Bf6 {[%clk
0:00:18.6]} 49. b3 {[%clk 0:00:16.8]} 49... Bb2 {[%clk 0:00:18.2]} 50. Bd2
{[%clk 0:00:16.7]} 50... Bf6 {[%clk 0:00:18]} 51. Be1 {[%clk 0:00:17.1]} 51...
Bd8 {[%clk 0:00:16.8]} 52. Bb4 {[%clk 0:00:16.8]} 52... Bc7 {[%clk 0:00:14.7]}
53. Bc3 {[%clk 0:00:16.7]} 53... Bd8 {[%clk 0:00:14.4]} 54. Bb4 {[%clk
0:00:16.5]} 54... Bc7 {[%clk 0:00:14.7]} 55. Bc3 {[%clk 0:00:16.9]} 55... Bd8
{[%clk 0:00:15]} 56. Bb4 {[%clk 0:00:17.6]} 1/2-1/2

[Event "Early-Titled-Tuesday-Blitz-December-26-2023"]
[Site "Chess.com"]
[Date "2023.12.26"]
[Round "11"]
[White "Aleksandar-Topalov"]
[Black "noblerone"]
[Result "1-0"]
[WhiteElo "2386"]
[BlackElo "2505"]
[TimeControl "180+1"]
[EndTime "10:06:00 PST"]
[Termination "Aleksandar-Topalov won by resignation"]

1. b3 {[%clk 0:03:00.9]} 1... d5 {[%clk 0:02:54.9]} 2. Bb2 {[%clk 0:03:01.3]}
2... Nf6 {[%clk 0:02:55.5]} 3. Nf3 {[%clk 0:03:01.6]} 3... Bf5 {[%clk
0:02:56.1]} 4. g3 {[%clk 0:03:01.4]} 4... e6 {[%clk 0:02:56.7]} 5. Bg2 {[%clk
0:03:01.7]} 5... Be7 {[%clk 0:02:57.4]} 6. O-O {[%clk 0:03:01.9]} 6... O-O
{[%clk 0:02:58.2]} 7. d3 {[%clk 0:03:02.4]} 7... h6 {[%clk 0:02:58.8]} 8. Nbd2
{[%clk 0:03:02.6]} 8... Bh7 {[%clk 0:02:59.5]} 9. c4 {[%clk 0:02:59.7]} 9... c5
{[%clk 0:02:50]} 10. Ne5 {[%clk 0:02:54.3]} 10... Nc6 {[%clk 0:02:47.3]} 11.
Nxc6 {[%clk 0:02:54.1]} 11... bxc6 {[%clk 0:02:47.3]} 12. e4 {[%clk 0:02:48.6]}
12... a5 {[%clk 0:02:41.6]} 13. Qe2 {[%clk 0:02:46]} 13... Re8 {[%clk
0:02:32.5]} 14. Rfd1 {[%clk 0:02:39.7]} 14... a4 {[%clk 0:02:29.2]} 15. h3
{[%clk 0:02:33.1]} 15... axb3 {[%clk 0:02:00.9]} 16. axb3 {[%clk 0:02:32.7]}
16... Rb8 {[%clk 0:01:44]} 17. Ra6 {[%clk 0:02:28.1]} 17... Qc8 {[%clk
0:01:41.5]} 18. Rda1 {[%clk 0:02:26.4]} 18... Bf8 {[%clk 0:01:05.3]} 19. Be5
{[%clk 0:02:25.7]} 19... Rb7 {[%clk 0:00:59]} 20. h4 {[%clk 0:02:21.8]} 20...
Nd7 {[%clk 0:00:57.4]} 21. Bc3 {[%clk 0:02:14.1]} 21... d4 {[%clk 0:00:56.8]}
22. Bb2 {[%clk 0:02:12.5]} 22... e5 {[%clk 0:00:57.3]} 23. Bc1 {[%clk 0:02:10]}
23... Be7 {[%clk 0:00:48.3]} 24. Bh3 {[%clk 0:02:09.7]} 24... Qc7 {[%clk
0:00:44]} 25. Nf3 {[%clk 0:01:46.9]} 25... Bd6 {[%clk 0:00:37.4]} 26. g4 {[%clk
0:01:15.7]} 26... Rxb3 {[%clk 0:00:32.2]} 27. g5 {[%clk 0:01:15.9]} 27... h5
{[%clk 0:00:31.1]} 28. Nd2 {[%clk 0:01:05.4]} 28... Rb6 {[%clk 0:00:26.7]} 29.
Rxb6 {[%clk 0:01:04.4]} 29... Nxb6 {[%clk 0:00:25.6]} 30. Qxh5 {[%clk
0:01:04.4]} 30... Nd7 {[%clk 0:00:22]} 31. Qg4 {[%clk 0:01:00.9]} 31... Nf8
{[%clk 0:00:22]} 32. Nf3 {[%clk 0:00:57.2]} 32... Ne6 {[%clk 0:00:19.6]} 33. h5
{[%clk 0:00:56.1]} 33... Nf4 {[%clk 0:00:19.8]} 34. Bxf4 {[%clk 0:00:54.8]}
34... exf4 {[%clk 0:00:19.3]} 35. g6 {[%clk 0:00:55.4]} 35... Be5 {[%clk
0:00:10.6]} 36. gxh7+ {[%clk 0:00:53.6]} 36... Kxh7 {[%clk 0:00:10.6]} 37. Qf5+
{[%clk 0:00:45.6]} 37... Kg8 {[%clk 0:00:10.8]} 38. Qg4 {[%clk 0:00:43.1]} 38...
Bd6 {[%clk 0:00:07.7]} 39. h6 {[%clk 0:00:42.9]} 39... g6 {[%clk 0:00:07.2]} 40.
Qd7 {[%clk 0:00:37.6]} 40... Rb8 {[%clk 0:00:04.7]} 41. Qxc7 {[%clk 0:00:34.5]}
41... Bxc7 {[%clk 0:00:05.6]} 42. Bd7 {[%clk 0:00:29.6]} 42... Rb3 {[%clk
0:00:05.5]} 43. Rd1 {[%clk 0:00:29.7]} 43... Rb6 {[%clk 0:00:04.5]} 44. Ng5
{[%clk 0:00:26.4]} 44... Bd8 {[%clk 0:00:03.7]} 45. h7+ {[%clk 0:00:25.5]} 45...
Kg7 {[%clk 0:00:02.7]} 46. h8=Q+ {[%clk 0:00:26]} 46... Kxh8 {[%clk 0:00:02.9]}
47. Nxf7+ {[%clk 0:00:26.4]} 47... Kg7 {[%clk 0:00:03.8]} 48. Nxd8 {[%clk
0:00:26.7]} 48... Rb2 {[%clk 0:00:03]} 49. Nxc6 {[%clk 0:00:25]} 49... g5 {[%clk
0:00:03.6]} 50. Bg4 {[%clk 0:00:24.4]} 50... Kf6 {[%clk 0:00:03.3]} 51. e5+
{[%clk 0:00:23.7]} 51... Kf7 {[%clk 0:00:03.9]} 52. e6+ {[%clk 0:00:23.7]} 52...
Ke8 {[%clk 0:00:04.5]} 53. e7 {[%clk 0:00:24]} 53... f3 {[%clk 0:00:04.7]} 54.
Bh5+ {[%clk 0:00:24.1]} 54... Kd7 {[%clk 0:00:03.9]} 55. e8=Q+ {[%clk
0:00:21.2]} 55... Kd6 {[%clk 0:00:04.8]} 1-0

[Event "Early-Titled-Tuesday-Blitz-December-26-2023"]
[Site "Chess.com"]
[Date "2023.12.26"]
[Round "11"]
[White "Witty_Alien"]
[Black "ShahMatKanal"]
[Result "1-0"]
[WhiteElo "2460"]
[BlackElo "2503"]
[TimeControl "180+1"]
[EndTime "10:06:00 PST"]
[Termination "Witty_Alien won on time"]

1. e4 {[%clk 0:03:00.9]} 1... c5 {[%clk 0:02:27.9]} 2. Nf3 {[%clk 0:02:28.8]}
2... e6 {[%clk 0:02:17.4]} 3. d4 {[%clk 0:02:29]} 3... cxd4 {[%clk 0:02:16.1]}
4. c3 {[%clk 0:02:29.6]} 4... d3 {[%clk 0:02:14.8]} 5. Bxd3 {[%clk 0:02:29.8]}
5... Nc6 {[%clk 0:02:10.3]} 6. O-O {[%clk 0:02:30.1]} 6... d6 {[%clk 0:02:06.2]}
7. Re1 {[%clk 0:02:30.8]} 7... Nge7 {[%clk 0:02:05.2]} 8. c4 {[%clk 0:02:29.2]}
8... Ng6 {[%clk 0:02:03.7]} 9. b3 {[%clk 0:02:13.5]} 9... Be7 {[%clk 0:02:01.8]}
10. Bb2 {[%clk 0:02:14.1]} 10... O-O {[%clk 0:02:00.2]} 11. Nc3 {[%clk
0:02:11.1]} 11... a6 {[%clk 0:01:23.4]} 12. Rc1 {[%clk 0:02:06.1]} 12... Nge5
{[%clk 0:01:13.7]} 13. Bb1 {[%clk 0:01:35.1]} 13... b6 {[%clk 0:01:04.4]} 14.
Nxe5 {[%clk 0:01:31.7]} 14... dxe5 {[%clk 0:01:03]} 15. Nd5 {[%clk 0:01:30.4]}
15... exd5 {[%clk 0:00:56.7]} 16. exd5 {[%clk 0:01:30.9]} 16... Nb8 {[%clk
0:00:35.4]} 17. Qh5 {[%clk 0:01:06.9]} 17... g6 {[%clk 0:00:34.6]} 18. Qxe5
{[%clk 0:01:06.2]} 18... f6 {[%clk 0:00:16.8]} 19. Qxe7 {[%clk 0:01:06.1]} 19...
Qxe7 {[%clk 0:00:17.3]} 20. Rxe7 {[%clk 0:01:07]} 20... Rf7 {[%clk 0:00:16.6]}
21. Re8+ {[%clk 0:00:59.4]} 21... Rf8 {[%clk 0:00:15.5]} 22. Rxf8+ {[%clk
0:00:56]} 22... Kxf8 {[%clk 0:00:16.4]} 23. Bxf6 {[%clk 0:00:56.7]} 23... Nd7
{[%clk 0:00:17.1]} 24. Bd4 {[%clk 0:00:55.5]} 24... Nc5 {[%clk 0:00:16]} 25.
Bxc5+ {[%clk 0:00:55.9]} 25... bxc5 {[%clk 0:00:16.9]} 26. Re1 {[%clk
0:00:56.5]} 26... Ra7 {[%clk 0:00:16.5]} 27. f3 {[%clk 0:00:54.7]} 27... a5
{[%clk 0:00:16.9]} 28. a4 {[%clk 0:00:53.9]} 28... Rb7 {[%clk 0:00:16.6]} 29.
Bc2 {[%clk 0:00:54.6]} 29... Bf5 {[%clk 0:00:16.2]} 30. Bxf5 {[%clk 0:00:54.3]}
30... gxf5 {[%clk 0:00:17.1]} 31. Re3 {[%clk 0:00:54.5]} 31... f4 {[%clk
0:00:17.3]} 32. Rd3 {[%clk 0:00:53.9]} 32... Ke7 {[%clk 0:00:18.2]} 33. d6+
{[%clk 0:00:52.5]} 33... Kd7 {[%clk 0:00:18.2]} 34. Kf2 {[%clk 0:00:52.8]} 34...
Rb8 {[%clk 0:00:14.5]} 35. g3 {[%clk 0:00:51.1]} 35... Rf8 {[%clk 0:00:13.2]}
36. gxf4 {[%clk 0:00:50.5]} 36... Rxf4 {[%clk 0:00:14.1]} 37. Kg3 {[%clk
0:00:51.1]} 37... Rf6 {[%clk 0:00:08.1]} 38. f4 {[%clk 0:00:49.1]} 38... Rg6+
{[%clk 0:00:07.4]} 39. Kf3 {[%clk 0:00:49]} 39... Rh6 {[%clk 0:00:08.3]} 40. Rd2
{[%clk 0:00:49]} 40... Rh3+ {[%clk 0:00:07.9]} 41. Ke4 {[%clk 0:00:42.4]} 41...
Rxb3 {[%clk 0:00:08.8]} 42. Kd5 {[%clk 0:00:43]} 42... Rf3 {[%clk 0:00:07.6]}
43. Kxc5 {[%clk 0:00:39.1]} 43... Rxf4 {[%clk 0:00:07.4]} 44. Kb5 {[%clk
0:00:33.5]} 44... Rf5+ {[%clk 0:00:07.6]} 45. c5 {[%clk 0:00:34.2]} 45... h5
{[%clk 0:00:06.9]} 46. Kb6 {[%clk 0:00:32.7]} 46... Rf3 {[%clk 0:00:05.8]} 47.
c6+ {[%clk 0:00:32.7]} 47... Kd8 {[%clk 0:00:05.4]} 48. d7 {[%clk 0:00:30.4]}
48... Rb3+ {[%clk 0:00:04.5]} 49. Kxa5 {[%clk 0:00:30.9]} 49... h4 {[%clk
0:00:04.7]} 50. c7+ {[%clk 0:00:30.8]} 50... Kxc7 {[%clk 0:00:04.6]} 51. d8=Q+
{[%clk 0:00:29.7]} 51... Kc6 {[%clk 0:00:05.1]} 52. Qd6+ {[%clk 0:00:29.8]}
52... Kb7 {[%clk 0:00:05]} 53. Qe7+ {[%clk 0:00:30.5]} 53... Kc6 {[%clk
0:00:04.3]} 54. Rd6+ {[%clk 0:00:30.9]} 54... Kc5 {[%clk 0:00:04.4]} 55. Qe5+
{[%clk 0:00:31.7]} 55... Kc4 {[%clk 0:00:04.6]} 56. Rd4+ {[%clk 0:00:32.5]}
56... Kc3 {[%clk 0:00:05]} 57. Qe3+ {[%clk 0:00:33.3]} 57... Kb2 {[%clk
0:00:04.6]} 58. Rd2+ {[%clk 0:00:34]} 58... Ka3 {[%clk 0:00:04.8]} 59. Qc5+
{[%clk 0:00:34.8]} 1-0

[Event "Early-Titled-Tuesday-Blitz-December-26-2023"]
[Site "Chess.com"]
[Date "2023.12.26"]
[Round "11"]
[White "Fischerev7"]
[Black "Shuvalov"]
[Result "1-0"]
[WhiteElo "2424"]
[BlackElo "2516"]
[TimeControl "180+1"]
[EndTime "10:06:02 PST"]
[Termination "Fischerev7 won by resignation"]

1. e4 {[%clk 0:02:54.5]} 1... e6 {[%clk 0:02:57.5]} 2. d4 {[%clk 0:02:54]} 2...
d5 {[%clk 0:02:55.7]} 3. Nc3 {[%clk 0:02:52.1]} 3... Bb4 {[%clk 0:02:55]} 4. Ne2
{[%clk 0:02:50.1]} 4... Nc6 {[%clk 0:02:54.1]} 5. e5 {[%clk 0:02:44.6]} 5... f6
{[%clk 0:02:44.7]} 6. f4 {[%clk 0:02:33.7]} 6... Nh6 {[%clk 0:02:40.4]} 7. a3
{[%clk 0:02:30.3]} 7... Ba5 {[%clk 0:02:39]} 8. b4 {[%clk 0:02:27.5]} 8... Bb6
{[%clk 0:02:38.5]} 9. Na4 {[%clk 0:02:28.1]} 9... fxe5 {[%clk 0:02:29.2]} 10.
Nxb6 {[%clk 0:02:20.7]} 10... axb6 {[%clk 0:02:28.3]} 11. fxe5 {[%clk
0:02:20.8]} 11... Nf5 {[%clk 0:01:41.3]} 12. c3 {[%clk 0:02:13.3]} 12... O-O
{[%clk 0:01:37.4]} 13. Bf4 {[%clk 0:01:55.2]} 13... Nce7 {[%clk 0:01:30.5]} 14.
Qd3 {[%clk 0:01:44.4]} 14... Ng6 {[%clk 0:01:29.9]} 15. Bd2 {[%clk 0:01:40.6]}
15... c5 {[%clk 0:01:27.1]} 16. b5 {[%clk 0:01:34.3]} 16... cxd4 {[%clk
0:01:18.6]} 17. cxd4 {[%clk 0:01:33]} 17... Ra4 {[%clk 0:01:17.8]} 18. Bb4
{[%clk 0:01:28.9]} 18... Rf7 {[%clk 0:01:00.9]} 19. g3 {[%clk 0:01:18.2]} 19...
Qg5 {[%clk 0:00:56.6]} 20. h4 {[%clk 0:01:09.3]} 20... Qe3 {[%clk 0:00:30.2]}
21. Rd1 {[%clk 0:01:03.3]} 21... Bd7 {[%clk 0:00:26.6]} 22. h5 {[%clk 0:00:49]}
22... Nf8 {[%clk 0:00:21.8]} 23. g4 {[%clk 0:00:47.9]} 23... Qxd3 {[%clk
0:00:13]} 24. Rxd3 {[%clk 0:00:48.8]} 24... Ne7 {[%clk 0:00:13]} 25. Nc3 {[%clk
0:00:43.9]} 25... Ra8 {[%clk 0:00:11.8]} 26. Be2 {[%clk 0:00:38.6]} 26... h6
{[%clk 0:00:12.1]} 27. Rf1 {[%clk 0:00:35.8]} 27... Nh7 {[%clk 0:00:09.8]} 28.
Rdf3 {[%clk 0:00:31.4]} 28... Rxf3 {[%clk 0:00:07.2]} 29. Rxf3 {[%clk
0:00:30.5]} 29... Re8 {[%clk 0:00:05]} 30. Na4 {[%clk 0:00:25.8]} 30... Ng5
{[%clk 0:00:04.8]} 31. Rf4 {[%clk 0:00:24.2]} 31... g6 {[%clk 0:00:03.7]} 32.
Nxb6 {[%clk 0:00:22.2]} 32... Bc8 {[%clk 0:00:02.6]} 33. Bxe7 {[%clk 0:00:21.8]}
33... Rxe7 {[%clk 0:00:02.5]} 34. Nxc8 {[%clk 0:00:21.8]} 34... Rc7 {[%clk
0:00:03.1]} 35. Nd6 {[%clk 0:00:18.5]} 35... gxh5 {[%clk 0:00:02.8]} 36. gxh5
{[%clk 0:00:18.1]} 36... Rc1+ {[%clk 0:00:02.4]} 37. Kd2 {[%clk 0:00:16]} 37...
Ra1 {[%clk 0:00:02.2]} 38. Nxb7 {[%clk 0:00:14]} 38... Ra2+ {[%clk 0:00:02.5]}
39. Kd1 {[%clk 0:00:12.1]} 39... Ne4 {[%clk 0:00:01.7]} 40. Bd3 {[%clk
0:00:06.5]} 40... Nc3+ {[%clk 0:00:01.8]} 41. Kc1 {[%clk 0:00:06.7]} 41... Rxa3
{[%clk 0:00:01.3]} 42. Nc5 {[%clk 0:00:05.1]} 42... Nxb5 {[%clk 0:00:01.1]} 43.
Bxb5 {[%clk 0:00:05]} 43... Rc3+ {[%clk 0:00:01.4]} 44. Kb2 {[%clk 0:00:04.8]}
44... Rh3 {[%clk 0:00:02.3]} 45. Bd7 {[%clk 0:00:04.9]} 45... Rh4 {[%clk
0:00:02.6]} 46. Bxe6+ {[%clk 0:00:04.8]} 46... Kg7 {[%clk 0:00:02.5]} 47. Rxh4
{[%clk 0:00:05.7]} 1-0